[Event "Chpt Reg Jeunes Occitanie 2026 - Espalion"]
[Site "Espalion, France"]
[Round "3.7"]
[ECO "?"]
[Annotator "?"]
[TimeControl "1h30 + 30sec/cp"]

1. d4 {[%clk 1:30:57][%emt 0:00:02]} 1... c5 {[%clk 1:30:54][%emt 0:00:07]} 2.
c3 {[%clk 1:29:49][%emt 0:01:37]} 2... Nf6 {[%clk 1:30:31][%emt 0:00:53]} 3.
Nf3 {[%clk 1:26:06][%emt 0:04:13]} 3... d5 {[%clk 1:29:47][%emt 0:01:14]} 4.
Bf4 {[%clk 1:24:15][%emt 0:02:21]} 4... Nc6 {[%clk 1:29:09][%emt 0:01:09]} 5.
e3 {[%clk 1:24:11][%emt 0:00:33]} 5... Bg4 {[%clk 1:27:22][%emt 0:02:17]} 6.
Nbd2 {[%clk 1:17:56][%emt 0:06:46]} 6... e6 {[%clk 1:25:33][%emt 0:02:19]} 7.
h3 {[%clk 1:14:22][%emt 0:04:03]} 7... Bh5 {[%clk 1:24:59][%emt 0:01:04]} 8.
Qb3 {[%clk 1:10:12][%emt 0:04:40]} 8... Qb6 {[%clk 1:22:01][%emt 0:03:28]} 9.
Qxb6 {[%clk 1:07:08][%emt 0:03:35]} 9... axb6 {[%clk 1:22:27][%emt 0:00:04]}
10. Bc7 {[%clk 1:05:36][%emt 0:02:02]} 10... Nd7 {[%clk 1:19:54][%emt 0:03:03]}
 11. Bb5 {[%clk 0:57:07][%emt 0:08:59]} 11... Rc8 {[%clk 1:02:10][%emt
0:18:13]} 12. Bg3 {[%clk 0:57:21][%emt 0:00:16]} 12... Be7 {[%clk
1:01:15][%emt 0:01:26]} 13. O-O {[%clk 0:55:13][%emt 0:02:38]} 13... O-O
{[%clk 1:01:28][%emt 0:00:17]} 14. Rfe1 {[%clk 0:53:17][%emt 0:02:26]} 14...
Rfd8 {[%clk 0:56:07][%emt 0:05:51]} 15. Rac1 {[%clk 0:48:20][%emt 0:05:26]}
15... f6 {[%clk 0:42:10][%emt 0:14:27]} 16. a3 {[%clk 0:48:13][%emt 0:00:37]}
16... Kf7 {[%clk 0:37:12][%emt 0:05:28]} 17. e4 {[%clk 0:42:01][%emt 0:06:43]}
17... dxe4 {[%clk 0:32:14][%emt 0:05:28]} 18. Rxe4 {[%clk 0:38:14][%emt
0:04:17]} 18... f5 {[%clk 0:25:07][%emt 0:07:37]} 19. Ree1 {[%clk
0:35:47][%emt 0:02:57]} 19... Bf6 {[%clk 0:20:00][%emt 0:05:37]} 20. Bc4
{[%clk 0:30:50][%emt 0:05:27]} 20... Nf8 {[%clk 0:19:02][%emt 0:01:27]} 21.
Nb3 {[%clk 0:18:38][%emt 0:12:42]} 21... Bxf3 {[%clk 0:18:55][%emt 0:00:37]}
22. gxf3 {[%clk 0:18:56][%emt 0:00:12]} 22... cxd4 {[%clk 0:18:52][%emt
0:00:33]} 23. cxd4 {[%clk 0:17:16][%emt 0:02:10]} 23... Bxd4 {[%clk
0:18:07][%emt 0:01:15]} 24. Nxd4 {[%clk 0:15:00][%emt 0:02:46]} 24... Nxd4
{[%clk 0:18:26][%emt 0:00:11]} 25. Kg2 {[%clk 0:15:05][%emt 0:00:25]} 25...
Nc6 {[%clk 0:13:12][%emt 0:05:44]} 26. Ba2 {[%clk 0:13:08][%emt 0:02:28]}
26... g5 {[%clk 0:09:51][%emt 0:03:50]} 27. f4 {[%clk 0:12:43][%emt 0:00:55]}
27... h6 {[%clk 0:09:57][%emt 0:00:23]} 28. fxg5 {[%clk 0:12:19][%emt 0:00:55]}
 28... hxg5 {[%clk 0:10:22][%emt 0:00:06]} 29. h4 {[%clk 0:09:04][%emt
0:03:45]} 29... gxh4 {[%clk 0:09:15][%emt 0:01:36]} 30. Bxh4 {[%clk
0:09:33][%emt 0:00:01]} 30... Rd4 {[%clk 0:09:23][%emt 0:00:22]} 31. Bg3
{[%clk 0:07:55][%emt 0:02:09]} 31... f4 {[%clk 0:08:04][%emt 0:01:49]} 32. Bh2
{[%clk 0:08:21][%emt 0:00:04]} 32... Kf6 {[%clk 0:07:22][%emt 0:01:12]} 33.
Re2 {[%clk 0:06:44][%emt 0:02:07]} 33... e5 {[%clk 0:06:09][%emt 0:01:42]} 34.
f3 {[%clk 0:07:03][%emt 0:00:11]} 34... Nd7 {[%clk 0:05:24][%emt 0:01:16]} 35.
Bg1 {[%clk 0:07:05][%emt 0:00:28]} 35... Rd3 {[%clk 0:04:13][%emt 0:01:40]}
36. Rec2 {[%clk 0:05:14][%emt 0:02:21]} 36... Rh8 {[%clk 0:03:32][%emt
0:01:11]} 37. Bc4 {[%clk 0:04:59][%emt 0:00:46]} 37... Rd6 {[%clk
0:03:30][%emt 0:00:32]} 38. b4 {[%clk 0:03:12][%emt 0:02:18]} 38... Ra8 {[%clk
0:03:02][%emt 0:00:57]} 39. Rc3 {[%clk 0:02:13][%emt 0:01:29]} 39... Rd2+
{[%clk 0:02:44][%emt 0:00:48]} 40. Kf1 {[%clk 0:02:42][%emt 0:00:01]} 40...
Nd4 {[%clk 0:02:24][%emt 0:00:50]} 41. Bf2 {[%clk 0:01:58][%emt 0:01:15]}
41... b5 {[%clk 0:01:42][%emt 0:01:12]} 42. Bd5 {[%clk 0:01:37][%emt 0:00:51]}
42... Rb8 {[%clk 0:00:46][%emt 0:01:26]} 43. Rc7 {[%clk 0:01:49][%emt 0:00:17]}
 43... Nb6 {[%clk 0:00:50][%emt 0:00:26]} 44. Bxb7 {[%clk 0:01:25][%emt
0:00:54]} 44... Nc4 {[%clk 0:00:49][%emt 0:00:31]} 45. Be4 {[%clk
0:01:09][%emt 0:00:45]} 45... Ne3+ {[%clk 0:00:41][%emt 0:00:38]} 46. Bxe3
{[%clk 0:01:04][%emt 0:00:35]} 46... fxe3 {[%clk 0:01:09][%emt 0:00:02]} 47.
R7c3 {[%clk 0:01:03][%emt 0:00:31]} 47... Rf2+ {[%clk 0:00:59][%emt 0:00:41]}
48. Ke1 {[%clk 0:01:13][%emt 0:00:20]} 48... Re2+ {[%clk 0:00:41][%emt
0:00:47]} 49. Kf1 {[%clk 0:01:11][%emt 0:00:32]} 49... Rh8 {[%clk
0:00:45][%emt 0:00:26]} 50. Kg1 {[%clk 0:00:59][%emt 0:00:43]} 50... Rg8+
{[%clk 0:00:52][%emt 0:00:23]} 51. Kh1 {[%clk 0:00:54][%emt 0:00:35]} 51...
Rh8+ {[%clk 0:00:48][%emt 0:00:34]} 52. Kg1 {[%clk 0:01:22][%emt 0:00:03]}
52... Reh2 {[%clk 0:00:53][%emt 0:00:24]} 53. Kf1 {[%clk 0:01:21][%emt
0:00:31]} 53... e2+ {[%clk 0:00:47][%emt 0:00:36]} 54. Ke1 {[%clk
0:01:21][%emt 0:00:30]} 54... Rh1+ {[%clk 0:00:44][%emt 0:00:33]} 55. Kf2
{[%clk 0:01:50]} 55... R8h2+ {[%clk 0:00:45][%emt 0:00:29]} 56. Kg3 {[%clk
0:02:19]} 56... e1=Q+ {[%clk 0:00:35][%emt 0:00:39]} 57. Rxe1 {[%clk
0:02:46][%emt 0:00:03]} 57... Rh3+ {[%clk 0:00:49][%emt 0:00:16]} 58. Kg2
{[%clk 0:02:30][%emt 0:00:46]} 58... R3h2+ {[%clk 0:00:40][%emt 0:00:38]} 59.
Kg3 {[%clk 0:02:58][%emt 0:00:02]} 59... Rh3+ {[%clk 0:00:47][%emt 0:00:23]} 1/2-1/2

[White "DESPAUX, Axel"]
[Black "LAVAL, Nolan"]
[WhiteElo "1759"]
[BlackElo "1876"]
[Result "0-1"]
[Date "2026.03.05"]

[Event "Chpt Reg Jeunes Occitanie 2026 - Espalion"]
[Site "Espalion, France"]
[Round "3.8"]
[ECO "?"]
[Annotator "?"]
[TimeControl "1h30 + 30sec/cp"]

1. e4 {[%clk 1:30:57][%emt 0:00:02]} 1... c5 {[%clk 1:30:58][%emt 0:00:03]} 2.
Nf3 {[%clk 1:31:23][%emt 0:00:03]} 2... e6 {[%clk 1:31:23][%emt 0:00:05]} 3.
d4 {[%clk 1:31:49][%emt 0:00:04]} 3... cxd4 {[%clk 1:31:50][%emt 0:00:03]} 4.
Nxd4 {[%clk 1:32:16][%emt 0:00:03]} 4... Nf6 {[%clk 1:32:13][%emt 0:00:07]} 5.
Nc3 {[%clk 1:32:43][%emt 0:00:03]} 5... Nc6 {[%clk 1:32:39][%emt 0:00:05]} 6.
Be2 {[%clk 1:33:09][%emt 0:00:02]} 6... Be7 {[%clk 1:31:56][%emt 0:01:13]} 7.
O-O {[%clk 1:33:31][%emt 0:00:08]} 7... O-O {[%clk 1:32:22][%emt 0:00:05]} 8.
Be3 {[%clk 1:33:57][%emt 0:00:04]} 8... a6 {[%clk 1:32:45][%emt 0:00:08]} 9.
f4 {[%clk 1:32:53][%emt 0:01:34]} 9... d6 {[%clk 1:32:14][%emt 0:01:01]} 10.
f5 {[%clk 1:26:39][%emt 0:06:44]} 10... Nxd4 {[%clk 1:10:38][%emt 0:22:05]}
11. Bxd4 {[%clk 1:23:01][%emt 0:04:08]} 11... Qc7 {[%clk 1:04:45][%emt
0:06:22]} 12. Qd3 {[%clk 1:17:28][%emt 0:06:05]} 12... e5 {[%clk 1:00:04][%emt
0:05:10]} 13. Be3 {[%clk 1:13:57][%emt 0:04:02]} 13... b5 {[%clk 0:59:23][%emt
0:01:11]} 14. Bg5 {[%clk 1:09:45][%emt 0:04:41]} 14... Bb7 {[%clk
0:57:07][%emt 0:02:46]} 15. Bxf6 {[%clk 1:09:30][%emt 0:00:46]} 15... Bxf6
{[%clk 0:57:26][%emt 0:00:11]} 16. Rac1 {[%clk 1:09:34][%emt 0:00:27]} 16...
Bg5 {[%clk 0:56:56][%emt 0:00:59]} 17. Rcd1 {[%clk 1:08:14][%emt 0:01:51]}
17... Rfd8 {[%clk 0:56:25][%emt 0:01:00]} 18. a3 {[%clk 0:52:42][%emt 0:16:03]}
 18... Rac8 {[%clk 0:55:29][%emt 0:01:25]} 19. g3 {[%clk 0:48:33][%emt
0:04:40]} 19... Rd7 {[%clk 0:43:11][%emt 0:12:47]} 20. h4 {[%clk 0:48:04][%emt
0:01:00]} 20... Bf6 {[%clk 0:43:18][%emt 0:00:22]} 21. Rd2 {[%clk
0:43:41][%emt 0:04:53]} 21... Qc5+ {[%clk 0:38:16][%emt 0:05:31]} 22. Kh2
{[%clk 0:40:54][%emt 0:03:18]} 22... Bd8 {[%clk 0:33:55][%emt 0:04:50]} 23.
Qf3 {[%clk 0:36:25][%emt 0:05:00]} 23... Ba5 {[%clk 0:20:22][%emt 0:14:03]}
24. f6 {[%clk 0:33:27][%emt 0:03:29]} 24... g6 {[%clk 0:20:46][%emt 0:00:06]}
25. Qg4 {[%clk 0:29:17][%emt 0:04:40]} 25... Rdd8 {[%clk 0:13:24][%emt
0:07:51]} 26. h5 {[%clk 0:24:27][%emt 0:05:20]} 26... Bxc3 {[%clk
0:12:26][%emt 0:01:28]} 27. hxg6 {[%clk 0:24:05][%emt 0:00:53]} 27... hxg6
{[%clk 0:12:09][%emt 0:00:47]} 28. Rd3 {[%clk 0:01:45][%emt 0:22:50]} 28...
Bxb2 {[%clk 0:11:18][%emt 0:01:21]} 29. Qg5 {[%clk 0:01:03][%emt 0:01:12]}
29... d5 {[%clk 0:11:31][%emt 0:00:17]} 30. Kg2 {[%clk 0:00:35][%emt 0:00:58]}
30... d4 {[%clk 0:02:31][%emt 0:09:29]} 31. Rh1 {[%emt 0:00:45]} 31... Bxe4+
{[%emt 0:00:02]} 0-1

[White "FIORIO, Thomas"]
[Black "BENNANI, Joachim"]
[WhiteElo "1822"]
[BlackElo "1727"]
[Result "1/2-1/2"]
[Date "2026.03.05"]

[Event "Chpt Reg Jeunes Occitanie 2026 - Espalion"]
[Site "Espalion, France"]
[Round "3.9"]
[ECO "?"]
[Annotator "?"]
[TimeControl "1h30 + 30sec/cp"]

1. e4 {[%clk 1:30:57][%emt 0:00:02]} 1... e6 {[%clk 1:30:52][%emt 0:00:08]} 2.
d4 {[%clk 1:31:14][%emt 0:00:13]} 2... d5 {[%clk 1:31:16][%emt 0:00:06]} 3.
exd5 {[%clk 1:31:34][%emt 0:00:09]} 3... exd5 {[%clk 1:31:37][%emt 0:00:09]}
4. Bd3 {[%clk 1:31:56][%emt 0:00:09]} 4... Bd6 {[%clk 1:31:41][%emt 0:00:26]}
5. Ne2 {[%clk 1:31:29][%emt 0:00:57]} 5... Nc6 {[%clk 1:30:55][%emt 0:01:17]}
6. c3 {[%clk 1:31:25][%emt 0:00:33]} 6... h6 {[%clk 1:27:39][%emt 0:03:46]} 7.
h3 {[%clk 1:27:18][%emt 0:04:37]} 7... Nge7 {[%clk 1:26:47][%emt 0:01:23]} 8.
Qc2 {[%clk 1:25:54][%emt 0:01:53]} 8... O-O {[%clk 1:24:15][%emt 0:03:02]} 9.
O-O {[%clk 1:23:58][%emt 0:02:26]} 9... Kh8 {[%clk 1:14:19][%emt 0:10:26]} 10.
Bf4 {[%clk 1:21:27][%emt 0:03:01]} 10... Be6 {[%clk 1:13:39][%emt 0:01:11]}
11. Nd2 {[%clk 1:20:54][%emt 0:01:02]} 11... Ng8 {[%clk 1:01:02][%emt 0:13:07]}
 12. Nf3 {[%clk 1:18:09][%emt 0:03:16]} 12... Nf6 {[%clk 0:57:08][%emt
0:04:23]} 13. Bxd6 {[%clk 1:16:21][%emt 0:02:18]} 13... Qxd6 {[%clk
0:57:11][%emt 0:00:27]} 14. Ng3 {[%clk 1:16:36][%emt 0:00:14]} 14... Rfe8
{[%clk 0:52:21][%emt 0:05:20]} 15. Rfe1 {[%clk 1:15:21][%emt 0:01:44]} 15...
Bd7 {[%clk 0:49:47][%emt 0:03:04]} 16. Qd2 {[%clk 1:10:49][%emt 0:05:01]}
16... Rxe1+ {[%clk 0:42:12][%emt 0:08:06]} 17. Rxe1 {[%clk 1:11:00][%emt
0:00:19]} 17... Re8 {[%clk 0:39:44][%emt 0:02:58]} 18. Rxe8+ {[%clk
1:06:37][%emt 0:04:53]} 18... Nxe8 {[%clk 0:39:36][%emt 0:00:38]} 19. Qe3
{[%clk 1:05:25][%emt 0:01:41]} 19... Qe6 {[%clk 0:36:50][%emt 0:03:17]} 20.
Qxe6 {[%clk 0:47:23][%emt 0:18:33]} 20... Bxe6 {[%clk 0:37:11][%emt 0:00:08]}
21. Bb5 {[%clk 0:47:13][%emt 0:00:41]} 21... Bd7 {[%clk 0:36:41][%emt 0:00:59]}
 22. Bxc6 {[%clk 0:44:01][%emt 0:03:43]} 22... Bxc6 {[%clk 0:36:36][%emt
0:00:34]} 23. Ne5 {[%clk 0:44:26][%emt 0:00:05]} 23... Nd6 {[%clk
0:36:49][%emt 0:00:17]} 24. Nxc6 {[%clk 0:43:31][%emt 0:01:25]} 1/2-1/2

[White "RHIGHI, Yassine"]
[Black "WOJTAS, Lumeann"]
[WhiteElo "1717"]
[BlackElo "1815"]
[Result "1-0"]
[Date "2026.03.05"]

[Event "Chpt Reg Jeunes Occitanie 2026 - Espalion"]
[Site "Espalion, France"]
[Round "3.10"]
[ECO "?"]
[Annotator "?"]
[TimeControl "1h30 + 30sec/cp"]

1. d4 {[%clk 1:30:57][%emt 0:00:03]} 1... Nf6 {[%clk 1:30:18][%emt 0:00:42]}
2. Nf3 {[%clk 1:30:59][%emt 0:00:29]} 2... g6 {[%clk 1:28:43][%emt 0:02:04]}
3. Bf4 {[%clk 1:30:37][%emt 0:00:52]} 3... Bg7 {[%clk 1:28:16][%emt 0:00:58]}
4. h3 {[%clk 1:30:57][%emt 0:00:10]} 4... d6 {[%clk 1:26:46][%emt 0:02:00]} 5.
e3 {[%clk 1:31:00][%emt 0:00:27]} 5... c5 {[%clk 1:25:42][%emt 0:01:33]} 6. c3
{[%clk 1:31:24][%emt 0:00:07]} 6... cxd4 {[%clk 1:24:24][%emt 0:01:49]} 7.
cxd4 {[%clk 1:31:41][%emt 0:00:12]} 7... O-O {[%clk 1:22:52][%emt 0:02:01]} 8.
Qb3 {[%clk 1:30:50][%emt 0:01:22]} 8... Be6 {[%clk 1:19:16][%emt 0:04:04]} 9.
Qxb7 {[%clk 1:28:43][%emt 0:02:38]} 9... Qa5+ {[%clk 1:19:08][%emt 0:00:37]}
10. b4 {[%clk 1:27:19][%emt 0:01:55]} 10... Bd5 {[%clk 1:19:03][%emt 0:00:34]}
11. Qxb8 {[%clk 1:26:50][%emt 0:01:00]} 11... Qa4 {[%clk 1:15:59][%emt
0:03:34]} 12. Qb5 {[%clk 1:26:45][%emt 0:00:33]} 12... Qc2 {[%clk
1:15:40][%emt 0:00:50]} 13. Qd3 {[%clk 1:26:42][%emt 0:00:28]} 13... Qc1+
{[%clk 1:12:47][%emt 0:03:29]} 14. Qd1 {[%clk 1:26:46][%emt 0:00:25]} 14...
Qb2 {[%clk 1:12:59][%emt 0:00:18]} 15. Nbd2 {[%clk 1:27:02][%emt 0:00:15]}
15... Bxa2 {[%clk 1:13:01][%emt 0:00:28]} 16. Qc1 {[%clk 1:27:09][%emt
0:00:22]} 16... Qxc1+ {[%clk 1:12:45][%emt 0:00:46]} 17. Rxc1 {[%clk
1:27:29][%emt 0:00:11]} 17... Nd5 {[%clk 1:12:41][%emt 0:00:33]} 18. Bg5
{[%clk 1:24:05][%emt 0:03:54]} 18... f6 {[%clk 1:12:41][%emt 0:00:30]} 19. Bh4
{[%clk 1:24:28][%emt 0:00:06]} 19... Nxb4 {[%clk 1:13:09][%emt 0:00:04]} 20.
Be2 {[%clk 1:24:33][%emt 0:00:25]} 20... a5 {[%clk 1:13:00][%emt 0:00:38]} 21.
O-O {[%clk 1:24:21][%emt 0:00:43]} 21... a4 {[%clk 1:13:15][%emt 0:00:15]} 22.
Bc4+ {[%clk 1:24:28][%emt 0:00:23]} 22... Bxc4 {[%clk 1:13:37][%emt 0:00:08]}
23. Rxc4 {[%clk 1:24:49][%emt 0:00:09]} 23... Nd3 {[%clk 1:12:50][%emt
0:01:16]} 24. Rc3 {[%clk 1:24:29][%emt 0:00:49]} 24... Nb2 {[%clk
1:13:09][%emt 0:00:12]} 25. Ra1 {[%clk 1:24:46][%emt 0:00:14]} 25... e5 {[%clk
1:12:47][%emt 0:00:51]} 26. Ra2 {[%clk 1:23:51][%emt 0:01:26]} 26... Rfb8
{[%clk 1:13:01][%emt 0:00:16]} 27. Nc4 {[%clk 1:23:47][%emt 0:00:33]} 27...
Nxc4 {[%clk 1:12:42][%emt 0:00:50]} 28. Rxc4 {[%clk 1:24:14][%emt 0:00:03]}
28... h5 {[%clk 1:13:06][%emt 0:00:06]} 29. g4 {[%clk 1:23:05][%emt 0:01:39]}
29... Rb1+ {[%clk 1:12:30][%emt 0:01:06]} 30. Kg2 {[%clk 1:23:27][%emt
0:00:08]} 30... a3 {[%clk 1:12:35][%emt 0:00:26]} 31. Rc3 {[%clk 1:23:47][%emt
0:00:09]} 31... Rb2 {[%clk 1:12:39][%emt 0:00:27]} 32. Raxa3 {[%clk
1:23:55][%emt 0:00:22]} 32... Rxa3 {[%clk 1:12:47][%emt 0:00:21]} 33. Rxa3
{[%clk 1:24:23][%emt 0:00:03]} 33... g5 {[%clk 1:12:59][%emt 0:00:18]} 34. Bg3
{[%clk 1:24:42][%emt 0:00:09]} 34... h4 {[%clk 1:13:15][%emt 0:00:15]} 35. Bh2
{[%emt 0:00:32]} 1-0

[White "MORALES, Maxime"]
[Black "MIMOUNI, Nael"]
[WhiteElo "1932"]
[BlackElo "1782"]
[Result "1-0"]
[Date "2026.03.05"]

[Event "Chpt Reg Jeunes Occitanie 2026 - Espalion"]
[Site "Espalion, France"]
[Round "4.6"]
[ECO "?"]
[Annotator "?"]
[TimeControl "1h30 + 30sec/cp"]

1. d4 {[%clk 1:30:55][%emt 0:00:04]} 1... Nf6 {[%clk 1:30:46][%emt 0:00:14]}
2. c4 {[%clk 1:31:17][%emt 0:00:08]} 2... g6 {[%clk 1:31:06][%emt 0:00:10]} 3.
Nc3 {[%clk 1:31:35][%emt 0:00:13]} 3... Bg7 {[%clk 1:31:26][%emt 0:00:09]} 4.
e4 {[%clk 1:31:54][%emt 0:00:12]} 4... d6 {[%clk 1:31:44][%emt 0:00:12]} 5.
Be2 {[%clk 1:31:34][%emt 0:00:49]} 5... O-O {[%clk 1:30:46][%emt 0:01:28]} 6.
Nf3 {[%clk 1:31:05][%emt 0:00:59]} 6... e5 {[%clk 1:29:18][%emt 0:01:58]} 7.
O-O {[%clk 1:30:31][%emt 0:01:05]} 7... Nc6 {[%clk 1:29:30][%emt 0:00:18]} 8.
d5 {[%clk 1:30:29][%emt 0:00:32]} 8... Ne7 {[%clk 1:29:52][%emt 0:00:07]} 9.
Ne1 {[%clk 1:30:19][%emt 0:00:40]} 9... Nd7 {[%clk 1:27:35][%emt 0:02:47]} 10.
Be3 {[%clk 1:29:30][%emt 0:01:20]} 10... f5 {[%clk 1:26:47][%emt 0:01:15]} 11.
f3 {[%clk 1:29:01][%emt 0:01:01]} 11... f4 {[%clk 1:26:57][%emt 0:00:21]} 12.
Bf2 {[%clk 1:28:51][%emt 0:00:40]} 12... g5 {[%clk 1:24:43][%emt 0:02:43]} 13.
Rc1 {[%clk 1:27:40][%emt 0:01:41]} 13... Ng6 {[%clk 1:20:16][%emt 0:04:57]}
14. c5 {[%clk 1:27:02][%emt 0:01:09]} 14... Nxc5 {[%clk 1:15:40][%emt 0:05:05]}
 15. b4 {[%clk 1:26:51][%emt 0:00:41]} 15... Nd7 {[%clk 1:14:08][%emt 0:02:03]}
 16. Nb5 {[%clk 1:24:47][%emt 0:02:34]} 16... Nf6 {[%clk 1:10:49][%emt
0:03:48]} 17. Nxc7 {[%clk 1:21:33][%emt 0:03:44]} 17... Bd7 {[%clk
1:06:33][%emt 0:04:46]} 18. Nxa8 {[%clk 1:19:36][%emt 0:02:28]} 18... Qxa8
{[%clk 1:06:38][%emt 0:00:24]} 19. Nd3 {[%clk 1:13:34][%emt 0:06:33]} 19... h5
{[%clk 1:04:29][%emt 0:02:38]} 20. Be1 {[%clk 1:06:54][%emt 0:07:10]} 20...
Qd8 {[%clk 0:55:11][%emt 0:09:47]} 21. Nf2 {[%clk 1:03:54][%emt 0:03:29]}
21... Nh8 {[%clk 0:51:43][%emt 0:03:59]} 22. a4 {[%clk 0:55:44][%emt 0:08:40]}
22... Nf7 {[%clk 0:50:54][%emt 0:01:19]} 23. b5 {[%clk 0:52:05][%emt 0:04:10]}
23... Nh6 {[%clk 0:49:33][%emt 0:01:50]} 24. h3 {[%clk 0:42:49][%emt 0:09:46]}
24... Rf7 {[%clk 0:46:05][%emt 0:03:59]} 25. Qc2 {[%clk 0:34:18][%emt 0:09:01]}
 25... Bf8 {[%clk 0:37:39][%emt 0:08:55]} 26. Bb4 {[%clk 0:29:38][%emt
0:05:11]} 26... Rg7 {[%clk 0:32:33][%emt 0:05:34]} 27. Rfd1 {[%clk
0:24:48][%emt 0:05:21]} 27... g4 {[%clk 0:26:30][%emt 0:06:33]} 28. hxg4
{[%clk 0:23:47][%emt 0:01:31]} 28... hxg4 {[%clk 0:26:34][%emt 0:00:26]} 29.
Kf1 {[%clk 0:21:29][%emt 0:02:49]} 29... Nh5 {[%clk 0:22:25][%emt 0:04:37]}
30. Ke1 {[%clk 0:11:59][%emt 0:10:01]} 30... Qh4 {[%clk 0:19:58][%emt 0:02:55]}
 31. Bf1 {[%clk 0:09:39][%emt 0:02:53]} 31... gxf3 {[%clk 0:15:51][%emt
0:04:36]} 32. gxf3 {[%clk 0:09:21][%emt 0:00:47]} 32... Nf7 {[%clk
0:11:27][%emt 0:04:54]} 33. Rd2 {[%clk 0:04:01][%emt 0:05:50]} 33... Ng5
{[%clk 0:09:27][%emt 0:02:30]} 34. Qd3 {[%clk 0:03:22][%emt 0:01:09]} 34...
Bh3 {[%clk 0:07:53][%emt 0:02:03]} 35. Rc3 {[%clk 0:01:34][%emt 0:02:19]}
35... Bxf1 {[%clk 0:04:47][%emt 0:03:36]} 36. Qxf1 {[%clk 0:01:02][%emt
0:01:02]} 36... Ng3 {[%clk 0:02:47][%emt 0:02:30]} 37. Qg2 {[%clk
0:00:50][%emt 0:00:41]} 37... Rh7 {[%clk 0:01:06][%emt 0:02:12]} 38. Kd1
{[%clk 0:00:43][%emt 0:00:37]} 38... Qh5 {[%clk 0:00:51][%emt 0:00:44]} 39.
Kc2 {[%clk 0:00:39][%emt 0:00:35]} 39... Qg6 {[%clk 0:01:04][%emt 0:00:16]}
40. Kb3 {[%clk 0:00:34][%emt 0:00:37]} 40... Qf7 {[%clk 0:00:51][%emt 0:00:42]}
 41. Ng4 {[%clk 0:00:36][%emt 0:00:28]} 41... Qg6 {[%clk 0:00:40][%emt
0:00:40]} 42. Nf2 {[%clk 0:00:53][%emt 0:00:14]} 42... Qf7 {[%clk
0:00:58][%emt 0:00:12]} 43. Rdc2 {[%clk 0:00:54][%emt 0:00:29]} 43... Kh8
{[%clk 0:00:49][%emt 0:00:39]} 44. Rc8 {[%clk 0:00:52][%emt 0:00:31]} 44...
Rg7 {[%clk 0:00:49][%emt 0:00:30]} 45. Bxd6 {[%clk 0:00:41][%emt 0:00:42]}
45... Ne6 {[%clk 0:00:34][%emt 0:00:45]} 46. Bxf8 {[%clk 0:00:37][%emt
0:00:35]} 46... Nxf8 {[%clk 0:00:38][%emt 0:00:26]} 47. Qh3+ {[%clk
0:00:37][%emt 0:00:29]} 47... Rh7 {[%clk 0:00:47][%emt 0:00:22]} 48. Qe6
{[%clk 0:00:37][%emt 0:00:29]} 48... Qg7 {[%clk 0:00:33][%emt 0:00:44]} 49.
Qe8 {[%clk 0:00:37][%emt 0:00:31]} 49... Kg8 {[%clk 0:00:44][%emt 0:00:18]}
50. R2c7 {[%clk 0:00:40][%emt 0:00:27]} 50... Qxc7 {[%clk 0:00:41][%emt
0:00:33]} 51. Qxf8# {[%clk 0:01:04][%emt 0:00:06]} 1-0

[White "LAVAL, Nolan"]
[Black "RHIGHI, Yassine"]
[WhiteElo "1876"]
[BlackElo "1717"]
[Result "1-0"]
[Date "2026.03.05"]

[Event "Chpt Reg Jeunes Occitanie 2026 - Espalion"]
[Site "Espalion, France"]
[Round "4.7"]
[ECO "?"]
[Annotator "?"]
[TimeControl "1h30 + 30sec/cp"]

1. e4 {[%clk 0:32:15]} 1... c6 {[%clk 1:14:12]} 2. d4 {[%clk 0:32:15]} 2... d5
{[%clk 1:14:12]} 3. Nc3 {[%clk 0:32:15]} 3... e6 {[%clk 1:14:12]} 4. a3 {[%clk
0:32:15]} 4... Nf6 {[%clk 1:14:12]} 5. e5 {[%clk 0:32:15]} 5... Nfd7 {[%clk
1:14:12]} 6. Nf3 {[%clk 0:32:15]} 6... c5 {[%clk 1:14:12]} 7. Bf4 {[%clk
0:32:15]} 7... a6 {[%clk 1:14:12]} 8. Bd3 {[%clk 0:32:15]} 8... Nc6 {[%clk
1:14:12]} 9. O-O {[%clk 0:32:15]} 9... cxd4 {[%clk 1:14:12]} 10. Ne2 {[%clk
0:32:15]} 10... Qb6 {[%clk 1:14:12]} 11. Qd2 {[%clk 0:32:15]} 11... Qc7 {[%clk
1:14:12]} 12. Nexd4 {[%clk 0:32:15]} 12... Ncxe5 {[%clk 1:14:12]} 13. Nxe5
{[%clk 0:32:15]} 13... Nxe5 {[%clk 1:14:12]} 14. Qe3 {[%clk 0:32:15]} 14...
Bd6 {[%clk 1:14:12]} 15. Qg3 {[%clk 0:32:15]} 15... f6 {[%clk 1:14:12]} 16.
Rfe1 {[%clk 0:32:15]} 16... Nf3+ {[%clk 1:14:12]} 17. Qxf3 {[%clk 0:32:15]}
17... Bxf4 {[%clk 1:14:12]} 18. Nxe6 {[%clk 0:32:15]} 18... Bxe6 {[%clk
1:14:12]} 19. Rxe6+ {[%clk 0:32:15]} 19... Kf8 {[%clk 1:14:12]} 20. g3 {[%clk
0:32:15]} 20... Be5 {[%clk 1:14:12]} 21. Re1 {[%clk 0:32:15]} 21... Qf7 {[%clk
1:14:12]} 22. Qxd5 {[%clk 0:32:15]} 22... Re8 {[%clk 1:14:12]} 23. Rxe8+
{[%clk 0:32:15]} 23... Kxe8 {[%clk 1:14:12]} 24. Qc5 {[%clk 0:32:15]} 1-0

[White "LABOURET, Emile"]
[Black "DUCOS, Antonios"]
[WhiteElo "1706"]
[BlackElo "1890"]
[Result "1-0"]
[Date "2026.03.05"]